fUST/lending_fUST_20251106
["ID","MTS","AMOUNT","RATE_DAILY","PERIOD"]
[393300578,1762437032586,-151.0,0.00024142,7]
[393300579,1762437032595,-151.0,0.00024142,7]
[393300580,1762437032604,-151.0,0.00024142,7]
[393300581,1762437032613,-151.0,0.00024142,7]
[393300582,1762437032622,-151.0,0.00024142,7]
[393300583,1762437032632,-151.0,0.00024142,7]
[393300584,1762437032641,-154.054456,0.00024142,7]
[393300585,1762437032650,-151.0,0.00024142,7]
[393300586,1762437032659,-151.0,0.00024142,7]
[393300587,1762437032668,-189.174177,0.00024142,7]
[393300588,1762437032676,-151.0,0.00024142,7]
[393300589,1762437032685,-151.0,0.00024142,7]
[393300590,1762437032694,-151.0,0.00024142,7]
[393300591,1762437032703,-151.262437,0.00024142,7]
[393300592,1762437032713,-151.0,0.00024142,7]
[393300593,1762437032722,-151.0,0.00024142,7]
[393300594,1762437032731,-202.414104,0.00024142,7]
[393300595,1762437032740,-205.167452,0.00024142,2]
[393300596,1762437032749,-151.0,0.00024142,2]
[393300597,1762437032758,-151.0,0.00024142,7]
[393300598,1762437032767,-164.454638,0.00024142,7]
[393300599,1762437032776,-151.0,0.00024142,7]
[393300600,1762437032792,-151.0,0.00024142,7]
[393300601,1762437032800,-151.0,0.00024142,7]
[393300602,1762437032809,-151.0,0.00024142,7]
[393300603,1762437032818,-151.0,0.00024142,7]
[393300604,1762437032827,-242.348322,0.00024142,7]
[393300605,1762437032836,-151.476937,0.00024142,7]
[393300606,1762437032845,-151.0,0.00024142,7]
[393300607,1762437032854,-151.967338,0.00024142,7]
[393300608,1762437032863,-151.0,0.00024142,7]
[393300609,1762437032873,-151.0,0.00024142,7]
[393300610,1762437032882,-151.0,0.00024142,7]
[393300611,1762437032891,-151.0,0.00024142,7]
[393300612,1762437032900,-151.0,0.00024142,7]
[393300613,1762437032908,-151.0,0.00024142,7]
[393300614,1762437032918,-151.0,0.00024142,7]
[393300615,1762437032927,-151.0,0.00024142,7]
[393300616,1762437032936,-151.0,0.00024142,7]
[393300617,1762437032945,-151.0,0.00024142,7]
[393300618,1762437032954,-359.428251,0.00024142,7]
[393300619,1762437032963,-359.428251,0.00024142,7]
[393300620,1762437032972,-359.428251,0.00024142,7]
[393300621,1762437032981,-359.428251,0.00024142,7]
[393300622,1762437032990,-359.428251,0.00024142,7]
[393300623,1762437032999,-359.428251,0.00024142,7]
[393300624,1762437033008,-359.428251,0.00024142,7]
[393300625,1762437033017,-359.428251,0.00024142,7]
[393300626,1762437033027,-152.527853,0.00024142,7]
[393300627,1762437033040,-151.0,0.00024142,7]
[393300628,1762437033049,-151.0,0.00024142,7]
[393300629,1762437033058,-151.0,0.00024142,7]
[393300630,1762437033067,-151.0,0.00024142,7]
[393300631,1762437033077,-151.0,0.00024142,7]
[393300632,1762437033086,-151.0,0.00024142,7]
[393300633,1762437033096,-151.0,0.00024142,7]
[393300634,1762437033105,-151.0,0.00024142,7]
[393300635,1762437033118,-151.0,0.00024142,7]
[393300636,1762437033128,-151.0,0.00024142,7]
[393300637,1762437033137,-162.808696,0.00024142,7]
[393300638,1762437033147,-151.0,0.00024142,7]
[393300639,1762437033156,-151.0,0.00024142,7]
[393300640,1762437033165,-151.0,0.00024142,7]
[393300641,1762437033176,-151.0,0.00024142,7]
[393300642,1762437033184,-153.071456,0.00024142,7]
[393300643,1762437033194,-151.0,0.00024142,7]
[393300644,1762437033203,-154.608511,0.00024142,7]
[393300645,1762437033213,-151.0,0.00024142,7]
[393300646,1762437033222,-151.0,0.00024142,7]
[393300647,1762437033231,-167.599622,0.00024142,7]
[393300648,1762437033241,-167.599622,0.00024142,7]
[393300649,1762437033251,-167.599622,0.00024142,7]
[393300650,1762437033261,-167.599622,0.00024142,7]
[393300651,1762437033270,-167.599622,0.00024142,7]
[393300652,1762437033281,-167.599622,0.00024142,7]
[393300653,1762437033290,-167.599622,0.00024142,7]
[393300654,1762437033299,-167.599622,0.00024142,7]
[393300655,1762437033308,-167.599622,0.00024142,7]
[393300656,1762437033318,-167.599622,0.00024142,7]
[393300657,1762437033327,-167.599622,0.00024142,7]
[393300658,1762437033336,-167.599622,0.00024142,7]
[393300659,1762437033346,-151.0,0.00024142,7]
[393300660,1762437033355,-151.0,0.00024142,7]
[393300661,1762437033364,-151.0,0.00024142,7]
[393300662,1762437033373,-151.0,0.00024142,7]
[393300663,1762437033383,-151.0,0.00024142,7]
[393300664,1762437033391,-151.0,0.00024142,7]
[393300665,1762437033401,-234.773306,0.00024142,7]
[393300666,1762437033410,-234.773306,0.00024142,7]
[393300667,1762437033420,-234.773306,0.00024142,7]
[393300668,1762437033429,-234.773306,0.00024142,7]
[393300669,1762437033438,-234.773306,0.00024142,7]
[393300670,1762437033447,-234.773306,0.00024142,7]
[393300671,1762437033456,-234.773306,0.00024142,7]
[393300672,1762437033465,-234.773306,0.00024142,7]
[393300673,1762437033474,-234.773306,0.00024142,7]
[393300674,1762437033483,-234.773306,0.00024142,7]
[393300675,1762437033492,-234.773306,0.00024142,7]
[393300676,1762437033501,-234.773306,0.00024142,7]
[393300677,1762437033511,-151.0,0.00024142,7]
[393300678,1762437033520,-151.0,0.00024142,7]
[393300679,1762437033530,-151.0,0.00024142,7]
[393300680,1762437033539,-151.0,0.00024142,7]
[393300681,1762437033548,-151.0,0.00024142,7]
[393300682,1762437033558,-151.0,0.00024142,7]
[393300683,1762437033567,-151.0,0.00024142,7]
[393300684,1762437033575,-151.0,0.00024142,7]
[393300685,1762437033585,-151.0,0.00024142,7]
[393300686,1762437033594,-151.0,0.00024142,7]
[393300687,1762437033603,-151.0,0.00024142,7]
[393300688,1762437033612,-151.0,0.00024142,7]
[393300689,1762437033621,-184.370502,0.00024142,7]
[393300690,1762437033631,-151.0,0.00024142,7]
[393300691,1762437033640,-172.949039,0.00024142,7]
[393300692,1762437033649,-151.0,0.00024142,7]
[393300693,1762437033658,-151.0,0.00024142,7]
[393300694,1762437033667,-151.0,0.00024142,7]
[393300695,1762437033675,-151.0,0.00024142,7]
[393300696,1762437033685,-151.0,0.00024142,7]
[393300697,1762437033694,-151.0,0.00024142,7]
[393300698,1762437033801,-151.0,0.00024142,7]
[393300699,1762437033812,-217.77344,0.00024142,7]
[393300700,1762437033821,-151.0,0.00024142,7]
[393300701,1762437033831,-151.0,0.00024142,7]
[393300702,1762437033840,-153.59902826,0.00024142,2]
[393300703,1762437033850,-151.0,0.00024142,2]
[393300704,1762437033859,-151.0,0.00024142,2]
[393300705,1762437033868,-4786.228875,0.00024142,7]
[393300706,1762437033878,-4786.228875,0.00024142,7]
[393300707,1762437033887,-4786.228875,0.00024142,7]
[393300708,1762437033896,-4786.228875,0.00024142,7]
[393300709,1762437033906,-4786.228875,0.00024142,7]
[393300710,1762437033915,-4786.228875,0.00024142,7]
[393300711,1762437033925,-4786.228875,0.00024142,7]
[393300712,1762437033935,-4786.228875,0.00024142,7]
[393300713,1762437033944,-4786.228875,0.00024142,7]
[393300714,1762437033953,-4786.228875,0.00024142,7]
[393300715,1762437033962,-4786.228875,0.00024142,7]
[393300716,1762437033972,-4786.228875,0.00024142,7]
[393300717,1762437033982,-4786.228875,0.00024142,7]
[393300718,1762437033991,-4786.228875,0.00024142,7]
[393300719,1762437034000,-4786.228875,0.00024142,7]
[393300720,1762437034009,-4786.228875,0.00024142,7]
[393300721,1762437034019,-151.0,0.00024142,7]
[393300722,1762437034029,-151.0,0.00024142,7]
[393300723,1762437034039,-151.0,0.00024142,7]
[393300724,1762437034048,-399.6403651,0.0002415,7]
[393300725,1762437034057,-500.0,0.00024173,2]
[393300726,1762437034067,-500.0,0.00024173,2]
[393300727,1762437034076,-151.0,0.00024197,2]
[393300728,1762437034085,-151.0,0.00024197,2]
[393300729,1762437034095,-151.0,0.00024197,2]
[393300730,1762437034105,-151.0,0.000242,7]
[393300731,1762437034116,-151.0,0.000242,7]
[393300732,1762437034125,-151.440977,0.000242,7]
[393300733,1762437034135,-167.865858,0.000242,7]
[393300734,1762437034145,-151.0,0.000242,7]
[393300735,1762437034154,-151.0,0.000242,7]
[393300736,1762437034164,-156.513195,0.000242,7]
[393300737,1762437034173,-151.0,0.000242,7]
[393300738,1762437034185,-151.0,0.000242,7]
[393300739,1762437034194,-151.0,0.000242,7]
[393300740,1762437034204,-300.913219,0.000242,7]
[393300741,1762437034212,-246.445773,0.000242,7]
[393300742,1762437034222,-151.0,0.000242,7]
[393300743,1762437034231,-359.428251,0.000242,7]
[393300744,1762437034240,-359.428251,0.000242,7]
[393300745,1762437034250,-359.428251,0.000242,7]
[393300746,1762437034259,-359.428251,0.000242,7]
[393300747,1762437034268,-151.0,0.000242,7]
[393300748,1762437034277,-151.0,0.000242,7]
[393300749,1762437034290,-151.0,0.000242,7]
[393300750,1762437034299,-170.37666,0.000242,7]
[393300751,1762437034309,-159.508361,0.000242,7]
[393300752,1762437034318,-167.599622,0.000242,7]
[393300753,1762437034328,-167.599622,0.000242,7]
[393300754,1762437034338,-167.599622,0.000242,7]
[393300755,1762437034347,-167.599622,0.000242,7]
[393300756,1762437034356,-151.0,0.000242,7]
[393300757,1762437034365,-279.587211,0.000242,7]
[393300758,1762437034375,-234.773306,0.000242,7]
[393300759,1762437034386,-234.773306,0.000242,7]
[393300760,1762437034395,-234.773306,0.000242,7]
[393300761,1762437034404,-234.773306,0.000242,7]
[393300762,1762437034415,-151.0,0.000242,7]
[393300763,1762437034424,-151.0,0.000242,7]
[393300764,1762437034433,-151.0,0.000242,7]
[393300765,1762437034442,-226.170498,0.000242,7]
[393300766,1762437034451,-151.0,0.000242,7]
[393300767,1762437034460,-4786.228875,0.000242,7]
[393300768,1762437034469,-4786.228875,0.000242,7]
[393300769,1762437034479,-4786.228875,0.000242,7]
[393300770,1762437034488,-4786.228882,0.000242,7]
[393300771,1762437034497,-213.38,0.000242,2]
[393300772,1762437034506,-506.113933,0.00024221,2]
[393300773,1762437034515,-199.55068334,0.00024252,2]
[393300774,1762437034524,-200.49952428,0.00024252,2]
[393300775,1762437034535,-205.84086007,0.00024252,2]
[393300776,1762437034544,-500.0,0.00024373,2]
[393300777,1762437034553,-523.356488,0.0002439,2]
[393300778,1762437034562,-151.0,0.000244,7]
[393300779,1762437034572,-151.0,0.000244,7]
[393300780,1762437034581,-151.0,0.000244,7]
[393300781,1762437034591,-151.0,0.000244,7]
[393300782,1762437034600,-151.0,0.000244,7]
[393300783,1762437034609,-359.428251,0.000244,7]
[393300784,1762437034618,-359.428251,0.000244,7]
[393300785,1762437034628,-359.428251,0.000244,7]
[393300786,1762437034637,-359.428251,0.000244,7]
[393300787,1762437034646,-151.0,0.000244,7]
[393300788,1762437034656,-151.0,0.000244,7]
[393300789,1762437034665,-151.0,0.000244,7]
[393300790,1762437034674,-167.599622,0.000244,7]
[393300791,1762437034683,-167.599622,0.000244,7]
[393300792,1762437034692,-167.599622,0.000244,7]
[393300793,1762437034702,-167.599628,0.000244,7]
[393300794,1762437034711,-234.773306,0.000244,7]
[393300795,1762437034720,-234.773306,0.000244,7]
[393300796,1762437034729,-234.773306,0.000244,7]
[393300797,1762437034738,-234.773316,0.000244,7]
[393300798,1762437034747,-151.0,0.000244,7]
[393300799,1762437034757,-151.0,0.000244,7]
[393300800,1762437034766,-151.0,0.000244,7]
[393300801,1762437034775,-151.0,0.000244,7]
[393300802,1762437034786,-10388.19215454,0.0002465,2]
[393300803,1762437034795,-151.0,0.0002465,7]
[393300804,1762437034804,-152.080367,0.0002465,7]
[393300805,1762437034813,-232.541224,0.0002465,7]
[393300806,1762437034822,-549.36892443,0.00024651,2]
[393300807,1762437034831,-200.0,0.00024658,15]
[393300808,1762437034840,-151.0,0.00024658,7]
[393300809,1762437034849,-151.0,0.00024658,7]
[393300810,1762437034858,-151.0,0.00024658,7]
[393300811,1762437034867,-751.2279212,0.00024721,2]
[393300812,1762437034876,-295.77378123,0.00024721,2]
[393300813,1762437034886,-162.31256608,0.000248,2]
[393300814,1762437034895,-166.173331,0.000248,7]
[393300815,1762437034904,-151.0,0.000248,7]
[393300816,1762437034913,-151.0,0.000248,7]
[393300817,1762437034923,-151.0,0.000248,7]
[393300818,1762437034932,-262.770703,0.000248,7]
[393300819,1762437034941,-151.0,0.000248,7]
[393300820,1762437034951,-151.0,0.000248,7]
[393300821,1762437034959,-151.0,0.000248,7]
[393300822,1762437034969,-151.0,0.000248,7]
[393300823,1762437034979,-151.0,0.000248,8]
[393300824,1762437034988,-151.0,0.000248,7]
[393300825,1762437034997,-151.0,0.000248,7]
[393300826,1762437035006,-359.428251,0.000248,7]
[393300827,1762437035016,-359.428251,0.000248,7]
[393300828,1762437035026,-359.428251,0.000248,7]
[393300829,1762437035037,-359.428253,0.000248,7]
[393300830,1762437035047,-399.6403651,0.00024832,2]
[393300831,1762437035056,-4399.0,0.00024843,2]
[393300832,1762437035066,-986.0,0.00024843,2]
[393300833,1762437035075,-628.0,0.00024843,2]
[393300834,1762437035084,-2165.0,0.00024843,2]
[393300835,1762437035095,-150.0,0.00024873,2]
[393300836,1762437035105,-500.0,0.00024878,2]
[393300837,1762437035119,-500.0,0.00024878,2]
[393300838,1762437035128,-500.0,0.00024884,2]
[393300839,1762437035137,-370.71694854,0.00024884,2]
[393300840,1762437035146,-500.0,0.00024887,2]
[393300841,1762437035157,-500.0,0.00024887,2]
[393300842,1762437035166,-500.0,0.00024887,2]
[393300843,1762437035176,-500.0,0.00024887,2]
[393300844,1762437035187,-500.0,0.00024887,2]
[393300845,1762437035196,-500.0,0.00024887,2]
[393300846,1762437035206,-288.53,0.00024887,2]
[393300847,1762437035216,-500.0,0.00024887,2]
[393300848,1762437035225,-500.0,0.00024887,2]
[393300849,1762437035236,-500.0,0.00024887,2]
[393300850,1762437035245,-195.44299184,0.00024887,2]
[393300851,1762437035255,-328.4796743,0.00024887,2]
[393300852,1762437035264,-163.56,0.000249,7]
[393300853,1762437035273,-1712.41,0.000249,7]
[393300854,1762437035285,-701.0,0.000249,3]
[393300855,1762437035294,-422807.938895,0.000249,2]
[393300856,1762437035304,-500.0,0.00024921,2]
[393300857,1762437035313,-168.0,0.00024922,2]
[393300858,1762437035322,-298.21806902,0.00024965,2]
[393300859,1762437035332,-2625.65143423,0.00024978,2]
[393300860,1762437035341,-108359.85476168,0.00024998,2]
[393300861,1762437035350,-32145.20109499,0.00025,2]
[393300862,1762437035359,-158.74,0.00025,14]
[393300863,1762437035370,-168.0,0.00025123,2]
[393300864,1762437035379,-300.0,0.00025293,20]
[393300865,1762437035389,-300.0,0.00025293,20]
[393300866,1762437035398,-300.0,0.00025293,20]
[393300867,1762437035407,-168.0,0.00025359,2]
[393300868,1762437035417,-300.0,0.00025395,20]
[393300869,1762437035427,-300.0,0.00025395,20]
[393300870,1762437035436,-300.0,0.00025421,2]
[393300871,1762437035445,-168.0,0.00025532,2]
[393300872,1762437035455,-177.0,0.00025676,2]
[393300873,1762437035464,-420.0,0.00025697,2]
[393300874,1762437035473,-168.0,0.00025803,2]
[393300875,1762437035482,-2174.26042089,0.0002588,2]
[393300876,1762437035491,-168.0,0.00025957,2]
[393300877,1762437035500,-243.84876572,0.00025968,2]
[393300878,1762437035510,-205.1193278,0.00026212,2]
[393300879,1762437035519,-523.356488,0.00026386,2]
[393300880,1762437035528,-1500.0,0.000265,2]
[393300881,1762437035538,-1500.0,0.000265,2]
[393300882,1762437035547,-1522.24,0.000265,2]
[393300883,1762437035556,-1712.41,0.000265,7]
[393300884,1762437035565,-278.300071,0.00026676,2]
[393300885,1762437035574,-2174.26042089,0.00026746,2]
[393300886,1762437035584,-324.29132988,0.00027273,2]
[393300887,1762437035593,-224.88375661,0.00027321,2]
[393300888,1762437035602,-400.81316179,0.0002739,7]
[393300889,1762437035611,-211.73540959,0.0002739,7]
[393300890,1762437035620,-1633.57,0.000274,2]
[393300891,1762437035629,-150.0,0.000274,5]
[393300892,1762437035639,-2174.26042089,0.00027612,3]
[393300893,1762437035648,-203.39363562,0.00027676,2]
[393300894,1762437035657,-583.0,0.00027875,2]
[393300895,1762437035667,-250.0,0.00027948,5]
[393300896,1762437035676,-155.0,0.0002811,27]
[393300897,1762437035686,-523.356488,0.00028381,2]
[393300898,1762437035696,-2174.26042089,0.00028478,3]
[393300899,1762437035706,-1712.41,0.000287,7]
[393300900,1762437035717,-170.51015852,0.000288,7]
[393300901,1762437035726,-246.0715473,0.00029332,2]
[393300902,1762437035736,-2174.26042089,0.00029343,4]
[393300903,1762437035745,-246.0715473,0.00029508,9]
[393300904,1762437035754,-246.0715473,0.00029685,17]
[393300905,1762437035763,-179.76630381,0.00029832,4]
[393300906,1762437035772,-246.0715473,0.00029861,25]
[393300907,1762437035781,-15523.07757906,0.000299,2]
[393300908,1762437035791,-408.59641721,0.0003,10]
[393300909,1762437035800,-237013.36198458,0.0003,20]
[393300910,1762437035809,-3118.25864019,0.0003,2]
[393300911,1762437035818,-165.46,0.0003,5]
[393300912,1762437035828,-200.0,0.0003,4]
[393300913,1762437035837,-2000.0,0.0003,7]
[393300914,1762437035846,-300.32041169,0.00030137,5]
[393300915,1762437035856,-2174.26042089,0.00030209,4]
[393300916,1762437035867,-464.23040418,0.00030211,2]
[393300917,1762437035876,-523.356488,0.00030376,2]
[393300918,1762437035885,-495.14691444,0.0003039,2]
[393300919,1762437035894,-1633.57,0.000304,2]
[393300920,1762437035905,-1712.41,0.000308,7]
[393300921,1762437035914,-200.0,0.00031,7]
[393300922,1762437035923,-2174.26042089,0.00031075,5]
[393300923,1762437035933,-200.0,0.0003151,7]
[393300924,1762437035942,-269.51,0.0003191,7]
[393300925,1762437035952,-2174.26042089,0.00031941,5]
[393300926,1762437035961,-200.0,0.000321,7]
[393300927,1762437035971,-863.17821252,0.00032192,7]
[393300928,1762437035980,-523.356488,0.00032372,2]
[393300929,1762437035990,-500.0,0.00032456,7]
[393300930,1762437036001,-200.0,0.0003251,7]
[393300931,1762437036010,-1000.0,0.00032512,10]
[393300932,1762437036020,-1000.0,0.00032649,10]
[393300933,1762437036029,-1000.0,0.00032786,10]
[393300934,1762437036038,-2174.26042089,0.00032806,6]
[393300935,1762437036047,-190.0,0.0003285,7]
[393300936,1762437036056,-1000.0,0.00032876,2]
[393300937,1762437036067,-1000.0,0.00032876,2]
[393300938,1762437036076,-500.0,0.00032876,2]
[393300939,1762437036086,-201.54188342,0.00032877,5]
[393300940,1762437036095,-277.73803196,0.00032877,7]
[393300941,1762437036105,-500.0,0.00032897,7]
[393300942,1762437036118,-1633.57,0.000329,14]
[393300943,1762437036128,-1712.41,0.000329,14]
[393300944,1762437036137,-200.0,0.0003291,7]
[393300945,1762437036148,-1000.0,0.00032923,10]
[393300946,1762437036158,-1315.67,0.00033,2]
[393300947,1762437036167,-1000.0,0.0003306,10]
[393300948,1762437036178,-214.32,0.000331,7]
[393300949,1762437036188,-278.300071,0.00033165,2]
[393300950,1762437036199,-2643.79768868,0.00033196,2]
[393300951,1762437036209,-268.0,0.0003333,5]
[393300952,1762437036219,-523.356488,0.00033418,7]
[393300953,1762437036228,-1000.0,0.00033424,2]
[393300954,1762437036237,-1000.0,0.00033424,2]
[393300955,1762437036247,-500.0,0.00033424,2]
[393300956,1762437036256,-200.0,0.0003351,7]
[393300957,1762437036266,-153.0,0.00033534,7]
[393300958,1762437036275,-176.68927709,0.00033534,7]
[393300959,1762437036286,-153.0,0.00033534,7]
[393300960,1762437036295,-168.34657869,0.00033534,7]
[393300961,1762437036305,-153.0,0.00033534,7]
[393300962,1762437036314,-523.356488,0.00033633,7]
[393300963,1762437036324,-2176.43468131,0.00033672,7]
[393300964,1762437036333,-1000.0,0.00033699,5]
[393300965,1762437036343,-1000.0,0.000338,10]
[393300966,1762437036352,-523.356488,0.00033847,7]
[393300967,1762437036362,-1000.0,0.00033972,2]
[393300968,1762437036372,-1000.0,0.00033972,2]
[393300969,1762437036381,-500.0,0.00033972,2]
[393300970,1762437036390,-1000.0,0.00034,2]
[393300971,1762437036399,-1030.0,0.00034,2]
[393300972,1762437036408,-1000.0,0.00034,2]
[393300973,1762437036418,-523.356488,0.00034062,7]
[393300974,1762437036427,-200.0,0.000341,7]
[393300975,1762437036436,-523.356488,0.00034277,7]
[393300976,1762437036445,-174.35051707,0.000345,2]
[393300977,1762437036455,-200.0,0.0003451,7]
[393300978,1762437036464,-1000.0,0.0003452,2]
[393300979,1762437036474,-1000.0,0.0003452,2]
[393300980,1762437036482,-500.0,0.0003452,2]
[393300981,1762437036492,-1712.41,0.000349,14]
[393300982,1762437036502,-6565.92,0.0003494,2]
[393300983,1762437036511,-200.0,0.0003499,3]
[393300984,1762437036520,-10703.75322062,0.00035,2]
[393300985,1762437036529,-657.03456726,0.00035,2]
[393300986,1762437036539,-1633.57,0.00035,14]
[393300987,1762437036642,-3436.01129186,0.00035,2]
[393300988,1762437036652,-35652.52870404,0.00035,13]
[393300989,1762437036661,-1004.08419169,0.00035068,2]
[393300990,1762437036670,-462.669087,0.00035068,2]
[393300991,1762437036679,-500.0,0.00035068,2]
[393300992,1762437036690,-200.0,0.000351,7]
[393300993,1762437036699,-163.56,0.000356,7]
[393300994,1762437036711,-500.0,0.00035616,2]
[393300995,1762437036720,-628.58500991,0.00036,5]
[393300996,1762437036729,-500.0,0.00036164,2]
[393300997,1762437036740,-151.55945,0.0003626,2]
[393300998,1762437036748,-302.0,0.0003626,2]
[393300999,1762437036758,-302.0,0.00036261,2]
[393301000,1762437036768,-175.739,0.0003647,5]
[393301001,1762437036776,-209.3985,0.0003647,5]
[393301002,1762437036786,-1633.57,0.000365,14]
[393301003,1762437036794,-1712.41,0.000365,14]
[393301004,1762437036807,-250.0,0.000365,14]
[393301005,1762437036825,-250.0,0.000365,14]
[393301006,1762437036841,-250.0,0.000365,14]
[393301007,1762437036850,-999.999999,0.00036666,2]
[393301008,1762437036859,-500.0,0.00036712,2]
[393301009,1762437036868,-464.23040418,0.00036743,2]
[393301010,1762437036877,-160.0,0.00036986,3]
[393301011,1762437036886,-160.0,0.00036986,5]
[393301012,1762437036895,-5329.76,0.00037,20]
[393301013,1762437036904,-268.0,0.00037,3]
[393301014,1762437036914,-300.0,0.00037,20]
[393301015,1762437036923,-1003.634495,0.000371,23]
[393301016,1762437036931,-495.14691444,0.000371,2]
[393301017,1762437036940,-10000.0,0.0003714,20]
[393301018,1762437036949,-26571.3340369,0.0003719,2]
[393301019,1762437036958,-150.0,0.000372,2]
[393301020,1762437036967,-150.0,0.000372,2]
[393301021,1762437036979,-150.0,0.000372,2]
[393301022,1762437036990,-150.0,0.000372,2]
[393301023,1762437037002,-250.0,0.000372,10]
[393301024,1762437037011,-2000.0,0.00037226,20]
[393301025,1762437037020,-169.60325,0.0003726,20]
[393301026,1762437037030,-500.0,0.0003726,2]
[393301027,1762437037039,-1500.0,0.00037261,3]
[393301028,1762437037048,-810.29596822,0.00037261,3]
[393301029,1762437037058,-500.0,0.00037261,2]
[393301030,1762437037067,-512.95054487,0.00037261,2]
[393301031,1762437037076,-2683.08,0.00037261,2]
[393301032,1762437037085,-2683.08,0.00037261,2]
[393301033,1762437037094,-2683.08,0.00037261,2]
[393301034,1762437037103,-2683.08,0.00037261,2]
[393301035,1762437037115,-2683.08,0.00037261,2]
[393301036,1762437037124,-2683.08,0.00037261,2]
[393301037,1762437037133,-2683.08,0.00037261,2]
[393301038,1762437037142,-2683.08,0.00037261,2]
[393301039,1762437037151,-2683.08,0.00037261,2]
[393301040,1762437037160,-2683.08,0.00037261,2]
[393301041,1762437037169,-2683.08,0.00037261,2]
[393301042,1762437037178,-2683.08,0.00037261,2]
[393301043,1762437037188,-2683.08,0.00037261,2]
[393301044,1762437037198,-2683.08,0.00037261,2]
[393301045,1762437037207,-2683.08,0.00037261,2]
[393301046,1762437037216,-2683.08,0.00037261,2]
[393301047,1762437037225,-2683.08,0.00037261,2]
[393301048,1762437037234,-2683.08,0.00037261,2]
[393301049,1762437037243,-2683.08,0.00037261,2]
[393301050,1762437037252,-2683.08,0.00037261,2]
[393301051,1762437037261,-2683.08,0.00037261,2]
[393301052,1762437037271,-2683.08,0.00037261,2]
[393301053,1762437037281,-2683.08,0.00037261,2]
[393301054,1762437037290,-2683.15631771,0.00037261,2]
[393301055,1762437037299,-500.0,0.00037261,2]
[393301056,1762437037309,-500.0,0.00037261,2]
[393301057,1762437037318,-500.0,0.00037261,2]
[393301058,1762437037327,-500.0,0.00037261,2]
[393301059,1762437037336,-500.0,0.00037261,2]
[393301060,1762437037346,-500.0,0.00037261,2]
[393301061,1762437037355,-500.0,0.00037261,2]
[393301062,1762437037364,-500.0,0.00037261,2]
[393301063,1762437037373,-500.0,0.00037261,2]
[393301064,1762437037382,-500.0,0.00037261,2]
[393301065,1762437037393,-572.76120995,0.00037261,2]
[393301066,1762437037402,-500.0,0.00037261,2]
[393301067,1762437037412,-164.59343814,0.00037261,2]
[393301068,1762437037421,-500.0,0.00037261,2]
[393301069,1762437037430,-500.0,0.00037261,2]
[393301070,1762437037439,-500.44618889,0.00037261,2]
[393301071,1762437037447,-10617.63,0.00037261,3]
[393301072,1762437037457,-10617.63,0.00037261,3]
[393301073,1762437037466,-10617.63,0.00037261,3]
[393301074,1762437037475,-10617.63,0.00037261,3]
[393301075,1762437037484,-10617.63,0.00037261,3]
[393301076,1762437037495,-10617.63,0.00037261,3]
[393301077,1762437037507,-10617.63,0.00037261,3]